bitfinex/quotes_BTCUSD_20240703
["timestamp","ask_amount","ask_price","bid_price","bid_amount"]
[1720012134696,0.101,59940.0,59939.0,0.05444057]
[1720012135969,0.102,59940.0,59939.0,0.05444057]
[1720012136808,0.102,59940.0,59939.0,0.05777696]
[1720012137034,0.002,59940.0,59939.0,0.24807576]
[1720012137237,0.002,59940.0,59939.0,0.33534892]
[1720012137434,0.02932896,59940.0,59939.0,0.24807576]
[1720012138243,0.02732896,59940.0,59939.0,0.24807576]
[1720012138437,0.007196,59941.0,59940.0,0.62494057]
[1720012138635,0.03212908,59941.0,59940.0,0.81555289]
[1720012138933,0.03212848,59941.0,59940.0,0.81545289]
[1720012139134,0.03212794,59941.0,59940.0,0.81545289]
[1720012139535,0.03212794,59941.0,59940.0,0.90568376]
[1720012139938,0.007196,59941.0,59940.0,0.90568376]
[1720012140530,0.007196,59941.0,59940.0,0.81545289]
[1720012140746,0.007196,59941.0,59940.0,0.82645289]
[1720012141161,0.008196,59941.0,59940.0,0.83145289]
[1720012141368,0.008196,59941.0,59940.0,0.82045289]
[1720012141764,0.007196,59941.0,59940.0,0.81545289]
[1720012141967,0.007196,59941.0,59940.0,1.19881595]
[1720012142168,0.008196,59941.0,59940.0,1.20381595]
[1720012142574,0.008196,59941.0,59940.0,1.20371595]
[1720012143126,0.008196,59941.0,59940.0,1.18061595]
[1720012143668,0.008196,59941.0,59940.0,1.15030243]
[1720012143911,0.008196,59941.0,59940.0,1.14530243]
[1720012143912,0.007196,59941.0,59940.0,1.14530243]
[1720012144112,0.00679342,59941.0,59940.0,1.15930243]
[1720012144328,0.00779342,59941.0,59940.0,1.47330243]
[1720012144540,0.00779342,59941.0,59940.0,1.48220243]
[1720012144871,0.00679342,59941.0,59940.0,1.46820243]
[1720012145518,0.00779342,59941.0,59940.0,1.48220243]
[1720012147015,0.00779342,59941.0,59940.0,1.78220243]
[1720012147152,0.00679342,59941.0,59940.0,1.76820243]
[1720012147553,0.00779342,59941.0,59940.0,1.78120243]
[1720012147852,0.00779342,59941.0,59940.0,1.79510243]
[1720012148402,0.00779342,59941.0,59940.0,1.79500243]
[1720012148593,0.009196,59959.0,59958.0,0.08264057]
[1720012148877,0.009196,59959.0,59958.0,0.57745289]
[1720012149087,0.009196,59959.0,59958.0,0.58068772]
[1720012149279,0.009196,59959.0,59958.0,0.88068772]
[1720012150460,0.009196,59959.0,59958.0,1.10368772]
[1720012150665,0.009196,59959.0,59958.0,1.24072166]
[1720012151277,0.009196,59959.0,59958.0,1.47132166]
[1720012151703,0.009196,59959.0,59958.0,1.48532166]
[1720012152114,0.009196,59959.0,59958.0,2.11400466]
[1720012152358,0.009185,59977.0,59967.0,0.88254057]
[1720012152494,0.009185,59977.0,59967.0,1.61525289]
[1720012152837,0.009185,59977.0,59976.0,0.88244057]
[1720012153063,0.009185,59984.0,59983.0,1.23414057]
[1720012153214,0.009185,59984.0,59983.0,1.59116695]
[1720012153421,0.009185,59984.0,59983.0,1.29116695]
[1720012153628,0.009185,59984.0,59983.0,1.59116695]
[1720012153781,0.009185,59984.0,59983.0,1.29116695]
[1720012154197,0.009185,59984.0,59983.0,1.59116695]
[1720012154799,0.009185,59984.0,59983.0,1.29116695]
[1720012155092,0.009185,59984.0,59983.0,1.30516695]
[1720012155311,0.009185,59984.0,59983.0,1.29116695]
[1720012155659,0.009185,59984.0,59983.0,1.30516695]
[1720012156234,0.009185,59984.0,59983.0,1.80516695]
[1720012157276,0.009185,59984.0,59983.0,1.79116695]
[1720012157637,0.009185,59984.0,59983.0,1.80516695]
[1720012158062,0.009185,60000.0,59985.0,1.87624857]
[1720012158267,0.009185,60000.0,59999.0,1.23324057]
[1720012158503,0.009185,60000.0,59999.0,1.44685289]
[1720012158679,0.009185,60000.0,59999.0,1.44675289]
[1720012158896,0.009185,60000.0,59999.0,1.59623983]
[1720012159227,0.009185,60000.0,59999.0,1.67213983]
[1720012159438,0.009185,60010.0,60009.0,0.88214057]
[1720012159564,2.0,60012.0,60011.0,0.88214057]
[1720012159565,0.509285,60012.0,60011.0,0.88214057]
[1720012159763,0.509285,60012.0,60011.0,1.06543937]
[1720012159966,0.509285,60012.0,60011.0,1.20580814]
[1720012160570,0.509285,60012.0,60011.0,0.90600814]
[1720012161440,0.509285,60012.0,60011.0,0.92000814]
[1720012161644,0.509285,60012.0,60011.0,1.21980814]
[1720012161849,0.509285,60012.0,60011.0,0.92000814]
[1720012162047,0.509285,60012.0,60011.0,0.90600814]
[1720012162455,0.509285,60012.0,60011.0,1.21970814]
[1720012163769,0.510285,60012.0,60011.0,1.23370814]
[1720012164071,0.510285,60012.0,60011.0,0.93390814]
[1720012164519,0.510285,60012.0,60011.0,0.91990814]
[1720012164520,0.509285,60012.0,60011.0,0.91990814]
[1720012164741,0.509285,60012.0,60011.0,1.21970814]
[1720012164982,0.510285,60012.0,60011.0,1.23370814]
[1720012165184,0.510285,60012.0,60011.0,0.91990814]
[1720012165294,0.510285,60012.0,60011.0,1.20570814]
[1720012165295,0.509285,60012.0,60011.0,1.20570814]
[1720012165493,0.509285,60012.0,60011.0,1.21970814]
[1720012165736,0.509285,60012.0,60011.0,1.21980814]
[1720012166055,0.510285,60012.0,60011.0,1.21980814]
[1720012166524,0.510285,60012.0,60011.0,1.21990814]
[1720012166727,0.510285,60012.0,60011.0,0.77973937]
[1720012166852,0.510385,60012.0,60011.0,0.77973937]
[1720012167264,0.510385,60012.0,60011.0,1.07963937]
[1720012167937,0.510385,60012.0,60011.0,1.09363937]
[1720012168139,0.510385,60012.0,60011.0,1.25147936]
[1720012168458,0.49800274,60012.0,60011.0,2.22561536]
[1720012168662,0.31130861,60012.0,60011.0,2.22561536]
[1720012168904,0.009185,60028.0,60019.0,0.88204057]
[1720012169104,0.009185,60028.0,60019.0,1.88790871]
[1720012169457,0.00800787,60020.0,60019.0,2.15492171]
[1720012169655,0.48093494,60052.0,60043.0,0.08224057]
[1720012169827,0.48093494,60052.0,60043.0,0.276183]
[1720012169828,0.48113494,60052.0,60043.0,0.276183]
[1720012170123,0.009196,60051.0,60043.0,0.3538013]
[1720012170581,0.009196,60051.0,60043.0,1.1766013]
[1720012170707,0.009196,60051.0,60043.0,1.1765013]
[1720012170892,0.009196,60051.0,60043.0,0.54337119]
[1720012171122,0.009196,60051.0,60043.0,0.52037119]
[1720012171367,0.009196,60051.0,60043.0,0.85037119]
[1720012171568,0.009196,60051.0,60043.0,0.88727119]
[1720012171773,0.009196,60051.0,60043.0,0.55727119]
[1720012171982,0.009196,60051.0,60043.0,0.53427119]
[1720012171983,0.0002,60049.0,60043.0,0.53427119]
[1720012172199,0.009396,60051.0,60043.0,0.53427119]
[1720012172419,0.009396,60051.0,60043.0,0.33427119]
[1720012172420,0.009196,60051.0,60043.0,0.33427119]
[1720012172565,0.009196,60051.0,60043.0,0.53417119]
[1720012172566,0.0002,60049.0,60043.0,0.53417119]
[1720012172804,0.009196,60051.0,60043.0,0.86417119]
[1720012172967,0.009196,60051.0,60043.0,0.89617119]
[1720012173190,0.009196,60051.0,60043.0,1.19597119]
[1720012173393,0.009196,60051.0,60043.0,0.89617119]
[1720012173602,0.009196,60051.0,60043.0,0.53417119]
[1720012173796,0.009396,60051.0,60043.0,0.53417119]
[1720012174000,0.0002,60048.0,60043.0,0.54617119]
[1720012174323,0.009396,60051.0,60043.0,0.54617119]
[1720012174534,0.0002,60048.0,60043.0,0.54617119]
[1720012174943,0.0002,60048.0,60043.0,0.53185767]
[1720012175141,0.0002,60052.0,60043.0,0.53185767]
[1720012175360,0.1,60056.0,60043.0,0.54585767]
[1720012175361,0.0002,60051.0,60043.0,0.54585767]
[1720012175561,0.0002,60052.0,60043.0,0.54585767]
[1720012175700,0.0002,60052.0,60043.0,0.53185767]
[1720012175901,0.0002,60052.0,60043.0,0.51975767]
[1720012176108,0.55207401,60044.0,60043.0,0.23613937]
[1720012176331,0.55227401,60044.0,60043.0,0.1702988]
[1720012176562,0.55227401,60044.0,60043.0,1e-06]
[1720012176563,0.65227401,60044.0,60043.0,1e-06]
[1720012176741,0.0002,60034.0,60033.0,0.05184057]
[1720012176935,0.302,60034.0,60033.0,0.21213937]
[1720012177137,0.402,60034.0,60033.0,0.21213937]
[1720012177715,0.1,60034.0,60033.0,0.21213937]
[1720012178095,0.1002,60034.0,60033.0,0.21213937]
[1720012178231,0.0002,60034.0,60033.0,0.21213937]
[1720012178776,0.0002,60038.0,60037.0,0.05184057]
[1720012179006,0.1,60040.0,60038.0,0.05184057]
[1720012179007,0.0002,60039.0,60038.0,0.05184057]
[1720012179219,0.1,60040.0,60039.0,0.05184057]
[1720012179422,0.1,60040.0,60039.0,0.21213937]
[1720012179593,0.1,60040.0,60039.0,0.23971774]
[1720012180020,0.0999,60040.0,60039.0,0.23971774]
[1720012180228,0.0998,60040.0,60039.0,0.21213937]
[1720012180629,0.5494,60039.0,60027.0,0.05184057]
[1720012180831,0.0002,60032.0,60031.0,0.05184057]
[1720012180985,0.5492,60039.0,60033.0,0.05184057]
[1720012180986,0.0002,60034.0,60033.0,0.05184057]
[1720012181187,0.0002,60034.0,60020.0,0.3]
[1720012181188,0.302,60033.0,60032.0,0.1602988]
[1720012181610,0.5448,60033.0,60032.0,0.1602988]
[1720012182038,0.5398,60033.0,60032.0,0.1602988]
[1720012182178,0.6398,60033.0,60032.0,0.1602988]
[1720012182600,0.9266,60033.0,60032.0,0.1602988]
[1720012182825,0.9266,60033.0,60026.0,0.05184057]
[1720012182980,0.1,60032.0,60027.0,0.1602988]
[1720012183453,0.5203,60027.0,60022.0,0.05184057]
[1720012183671,0.5202,60027.0,60023.0,0.1602988]
[1720012183980,0.3018,60024.0,60023.0,0.1602988]
[1720012184109,0.4018,60024.0,60021.0,0.05184057]
[1720012184305,0.0999,60023.0,60021.0,0.05184057]
[1720012184545,0.10229073,60023.0,60013.0,0.05184057]
[1720012184747,0.00229073,60022.0,60014.0,0.1602988]
[1720012184949,0.3018,60015.0,60014.0,0.1602988]
[1720012185404,0.3018,60015.0,60014.0,0.21213937]
[1720012185964,0.3018,60015.0,60014.0,0.23647461]
[1720012186169,0.3018,60015.0,60014.0,0.21213937]
[1720012186369,0.4018,60015.0,60014.0,0.21203937]
[1720012186570,0.4018,60015.0,60014.0,0.21803937]
[1720012186746,0.65,60015.0,60014.0,0.1660988]
[1720012187536,0.65,60015.0,60014.0,0.006]
[1720012187730,0.655,60015.0,60014.0,0.05794057]
[1720012188159,0.655,60015.0,60014.0,0.006]
[1720012188356,0.65,60015.0,60014.0,0.05794057]
[1720012188655,0.655,60015.0,60014.0,0.05194057]
[1720012189104,0.655,60015.0,60014.0,0.002]
[1720012189316,0.655,60015.0,60013.0,0.05194057]
[1720012189491,0.655,60015.0,60013.0,0.21223937]
[1720012189492,0.1,60014.0,60013.0,0.21223937]
[1720012191835,0.101,60014.0,60013.0,0.21223937]
[1720012192410,0.1,60014.0,60013.0,0.21223937]
[1720012192603,0.1,60014.0,60013.0,0.21523937]
[1720012193016,0.1,60014.0,60013.0,0.21223937]
[1720012193017,0.0999,60014.0,60013.0,0.21223937]
[1720012193141,0.0999,60014.0,60013.0,0.22223937]
[1720012193348,0.0998,60014.0,60013.0,0.25094918]
[1720012193549,0.33779321,60015.0,60014.0,0.05194057]
[1720012193775,0.08959321,60015.0,60014.0,0.21223937]
[1720012193969,0.3026,60021.0,60014.0,0.24382016]
[1720012193970,0.2476,60019.0,60014.0,0.24382016]
[1720012194187,0.2476,60019.0,60018.0,0.05194057]
[1720012194423,0.2476,60019.0,60018.0,0.21223937]
[1720012195174,0.3018,60022.0,60018.0,0.21223937]
[1720012195400,0.3018,60030.0,60029.0,0.05194057]
[1720012195625,0.3018,60030.0,60029.0,0.21223937]
[1720012196211,0.00947401,60044.0,60029.0,0.77523937]
[1720012196459,0.00947401,60044.0,60042.0,0.05194057]
[1720012196460,0.02886963,60043.0,60042.0,0.05194057]
[1720012196700,0.02886963,60043.0,60042.0,0.21223937]
[1720012196923,0.00947401,60044.0,60043.0,0.05194057]
[1720012197151,0.00947401,60044.0,60043.0,0.05527118]
[1720012197352,0.00947401,60044.0,60043.0,0.05204057]
[1720012197481,0.00947401,60044.0,60043.0,0.05537118]
[1720012197686,0.00937401,60044.0,60043.0,0.21566998]
[1720012197889,0.00937401,60044.0,60043.0,0.2458835]
[1720012198269,0.00937401,60044.0,60043.0,0.24255289]
[1720012200300,0.00927401,60044.0,60043.0,0.2788832]
[1720012200540,0.00927401,60044.0,60043.0,0.9259871]
[1720012200732,0.00927401,60044.0,60043.0,0.92565679]
[1720012200935,0.00927401,60044.0,60043.0,0.92555679]
[1720012201129,0.00917401,60044.0,60043.0,0.92255679]
[1720012201359,0.00917401,60044.0,60043.0,0.85655289]
[1720012201555,0.00917401,60044.0,60043.0,0.85355289]
[1720012201715,0.00917401,60044.0,60043.0,0.85365289]
[1720012201927,0.00917401,60044.0,60043.0,1.53822637]
[1720012202128,0.00917401,60044.0,60043.0,0.82333937]
[1720012202333,0.00917401,60044.0,60043.0,1.70275854]
[1720012202535,0.00917401,60044.0,60043.0,1.86518506]
[1720012202939,0.00917401,60044.0,60043.0,1.76575376]
[1720012203362,0.00917401,60044.0,60043.0,1.8651693]
[1720012203843,0.00917401,60044.0,60043.0,1.94165376]
[1720012203985,0.00917401,60044.0,60043.0,1.94365376]
[1720012204189,0.00917401,60044.0,60043.0,1.76775376]
[1720012204392,0.00917401,60044.0,60043.0,1.76765376]
[1720012204589,0.00917401,60044.0,60043.0,1.86701345]
[1720012204792,0.00917401,60044.0,60043.0,1.76555376]
[1720012205020,0.00917401,60044.0,60043.0,2.59525346]
[1720012205226,0.00917401,60044.0,60043.0,2.27615946]
[1720012205432,0.00917401,60044.0,60043.0,3.02770377]
[1720012205630,0.00917401,60044.0,60043.0,2.73344584]
[1720012205843,0.00917401,60044.0,60043.0,2.26215946]
[1720012206039,0.00917401,60044.0,60043.0,2.24815946]
[1720012206241,0.00917401,60044.0,60043.0,2.26215946]
[1720012206447,0.00917401,60044.0,60043.0,2.36147102]
[1720012206650,0.00917401,60044.0,60043.0,2.59525346]
[1720012206916,0.0002,60059.0,60058.0,1.43924057]
[1720012207048,0.0002,60059.0,60058.0,0.29753491]
[1720012207254,0.0002,60059.0,60058.0,0.79753491]
[1720012207451,0.0002,60059.0,60058.0,1.49329073]
[1720012207674,0.0002,60059.0,60058.0,3.16931773]
[1720012208021,0.00916301,60073.0,60072.0,1.43924057]
[1720012208138,0.00916301,60073.0,60072.0,1.75826728]
[1720012208342,0.00916301,60073.0,60072.0,1.75816728]
[1720012208541,0.00916301,60073.0,60072.0,1.75806728]
[1720012209349,0.00916301,60073.0,60072.0,2.93556628]
[1720012209515,0.00916301,60073.0,60072.0,2.60263328]
[1720012209749,0.251,60112.0,60093.0,0.08094498]
[1720012209932,0.251,60112.0,60093.0,0.30056654]
[1720012210333,0.48093494,60111.0,60093.0,0.59723932]
[1720012210701,0.009163,60109.0,60093.0,0.62023932]
[1720012210872,0.48093494,60111.0,60093.0,0.92013932]
[1720012211075,0.00446991,60105.0,60104.0,0.08094498]
[1720012211211,0.00446991,60105.0,60104.0,0.5741418]
[1720012211417,0.00446991,60105.0,60104.0,0.8740418]
[1720012211617,0.00446991,60105.0,60104.0,1.1969418]
[1720012211900,0.00446991,60105.0,60104.0,1.3969418]
[1720012212164,0.00446991,60105.0,60104.0,0.7740418]
[1720012212374,0.00446991,60105.0,60104.0,1.17719762]
[1720012212565,0.00446991,60105.0,60104.0,1.18319762]
[1720012213011,0.00446991,60105.0,60104.0,1.47709762]
[1720012213240,0.00446991,60105.0,60104.0,1.49109762]
[1720012213696,0.00446991,60105.0,60104.0,1.47709762]
[1720012214105,0.00446991,60105.0,60104.0,1.49109762]
[1720012214513,0.00446991,60105.0,60104.0,0.2414573]
[1720012214695,0.00446991,60105.0,60104.0,0.19061232]
[1720012215106,0.25076991,60105.0,60104.0,0.1742988]
[1720012215313,0.00446991,60105.0,60104.0,0.1742988]
[1720012215519,0.00446991,60105.0,60104.0,0.25878463]
[1720012215721,0.00446991,60105.0,60104.0,1.39003576]
[1720012215925,0.00446991,60105.0,60104.0,1.67926243]
[1720012216144,0.00446991,60105.0,60104.0,1.37936243]
[1720012216351,0.00446991,60105.0,60104.0,0.22514378]
[1720012216607,0.00446991,60105.0,60104.0,0.26914378]
[1720012216797,0.00446991,60105.0,60104.0,0.21114378]
[1720012216943,0.00446991,60105.0,60104.0,0.1602988]
[1720012217144,0.00446991,60105.0,60104.0,0.1742988]
[1720012217345,0.00446991,60105.0,60104.0,0.1882988]
[1720012217559,0.00446991,60105.0,60104.0,0.1741988]
[1720012217750,0.00446991,60105.0,60104.0,0.1600988]
[1720012217982,0.00446991,60105.0,60104.0,0.1740988]
[1720012218367,0.56416991,60105.0,60104.0,0.1740988]
[1720012218639,0.56685623,60105.0,60104.0,0.014]
[1720012218854,0.75372185,60105.0,60104.0,0.014]
[1720012219060,0.5692,60104.0,60087.0,0.05084498]
[1720012219281,0.3018,60096.0,60092.0,0.48093494]
[1720012219484,0.1,60095.0,60092.0,0.1602988]
[1720012219951,0.1,60095.0,60093.0,0.05084498]
[1720012220167,0.1,60095.0,60092.0,0.21114378]
[1720012220368,0.1,60095.0,60094.0,0.05084498]
[1720012220568,0.1,60095.0,60094.0,0.1602988]
[1720012220833,0.04483877,60102.0,60095.0,0.05084498]
[1720012220979,0.04483877,60102.0,60096.0,0.16362641]
[1720012221386,0.04483877,60102.0,60097.0,0.00332761]
[1720012221547,0.04752509,60102.0,60097.0,0.1602988]
[1720012221757,0.00268632,60101.0,60097.0,0.1602988]
[1720012221956,0.04483877,60102.0,60098.0,0.01602988]
[1720012222166,0.00268632,60101.0,60097.0,0.1602988]
[1720012222561,0.04483877,60102.0,60097.0,0.1602988]
[1720012222768,0.00268632,60099.0,60092.0,0.03131352]
[1720012222986,0.00268632,60099.0,60093.0,0.1602988]
[1720012223715,0.14983877,60102.0,60093.0,0.1602988]
[1720012224034,0.14483877,60102.0,60099.0,0.05084498]
[1720012224259,0.14483877,60102.0,60100.0,0.1602988]
[1720012224808,0.15383877,60102.0,60100.0,0.1602988]
[1720012224988,0.15383877,60102.0,60101.0,0.05084498]
[1720012225366,0.109,60102.0,60101.0,0.21114378]
[1720012225573,0.109,60102.0,60101.0,0.17572147]
[1720012225756,0.1,60102.0,60101.0,0.17572147]
[1720012226132,0.1,60102.0,60101.0,0.17904893]
[1720012226298,0.00446991,60105.0,60104.0,0.01542267]
[1720012226498,0.00446991,60105.0,60104.0,0.28920425]
[1720012226718,0.00446991,60105.0,60104.0,0.31920425]
[1720012226926,0.00446991,60105.0,60104.0,0.17904843]
[1720012227659,0.00446991,60105.0,60104.0,0.17572147]
[1720012228067,0.00446991,60105.0,60104.0,0.20572147]
[1720012228285,0.00446991,60105.0,60104.0,0.23904832]
[1720012228646,0.00446991,60105.0,60104.0,0.20904832]
[1720012228844,0.00446991,60105.0,60104.0,0.23904832]
[1720012229054,0.00446991,60105.0,60104.0,0.24472147]
[1720012229452,0.00546991,60105.0,60104.0,0.26204804]
[1720012229686,0.00546991,60105.0,60104.0,1.76198978]
[1720012230044,0.00446991,60105.0,60104.0,1.12166321]
[1720012230563,0.00446991,60105.0,60104.0,0.29586321]
[1720012230564,0.00546991,60105.0,60104.0,0.29586321]
[1720012230784,0.00546991,60105.0,60104.0,0.28686321]
[1720012231004,0.00546991,60105.0,60104.0,0.20262147]
[1720012231159,0.00546991,60105.0,60104.0,0.40262147]
[1720012231360,0.00546991,60105.0,60104.0,0.46262147]
[1720012232266,0.00546991,60105.0,60104.0,1.06252147]
[1720012232466,0.00446991,60105.0,60104.0,1.07152147]
[1720012232887,0.00446991,60105.0,60104.0,2.14055547]
[1720012233089,0.00446991,60105.0,60104.0,2.15455547]
[1720012233090,0.00546991,60105.0,60104.0,2.15455547]
[1720012233295,0.066636,60138.0,60135.0,0.01532267]
[1720012233563,0.066636,60138.0,60135.0,0.17552147]
[1720012233820,0.5649,60143.0,60135.0,0.17552147]
[1720012234228,0.5649,60143.0,60135.0,0.20552147]
[1720012234367,0.63153,60143.0,60135.0,0.20552147]
[1720012234543,0.63153,60143.0,60135.0,0.17552147]
[1720012235599,0.1,60142.0,60135.0,0.1602988]
[1720012235793,0.1,60142.0,60135.0,0.17552147]
[1720012236999,0.1,60142.0,60135.0,0.18052147]
[1720012237662,0.3018,60151.0,60135.0,0.20760497]
[1720012237663,0.2653,60148.0,60135.0,0.20760497]
[1720012237873,0.2653,60148.0,60135.0,0.18384662]
[1720012238042,0.066626,60147.0,60135.0,0.18052147]
[1720012238892,0.166626,60147.0,60135.0,0.18052147]
[1720012239099,0.15287764,60148.0,60135.0,0.18052147]
[1720012239326,0.31657733,60144.0,60137.0,0.01522267]
[1720012239527,0.0214568,60143.0,60138.0,0.1602988]
[1720012239736,0.0214568,60143.0,60140.0,0.01522267]
[1720012239935,0.13810031,60148.0,60141.0,0.1602988]
[1720012240135,0.0206933,60147.0,60141.0,0.1601988]
[1720012241193,0.1206933,60147.0,60141.0,0.1601988]
[1720012241400,0.0206933,60146.0,60141.0,0.1601988]
[1720012241715,0.03547063,60146.0,60141.0,0.1601988]
[1720012242034,0.03547063,60146.0,60135.0,0.03061352]
[1720012242035,0.01477733,60141.0,60135.0,0.03071352]
[1720012242324,0.3018,60136.0,60135.0,0.0004]
[1720012242556,0.42246644,60136.0,60135.0,0.0004]
[1720012242779,0.12041054,60136.0,60135.0,0.1606988]
[1720012243000,0.1,60136.0,60135.0,0.1606988]
[1720012243280,0.1,60136.0,60135.0,0.19384616]
[1720012243506,0.1,60136.0,60135.0,0.17592147]
[1720012243714,0.1,60147.0,60140.0,0.01522267]
[1720012243936,0.1,60147.0,60141.0,0.17552147]
[1720012243937,0.02240201,60146.0,60141.0,0.17552147]
[1720012244146,0.02240201,60146.0,60141.0,0.1602988]
[1720012244770,0.02240201,60146.0,60141.0,0.18442147]
[1720012244943,0.02240201,60146.0,60145.0,0.01512267]
[1720012245148,0.1,60147.0,60145.0,0.17542147]
[1720012245438,0.066626,60150.0,60147.0,0.01512267]
[1720012245586,0.02221384,60149.0,60146.0,0.1602988]
[1720012245789,0.02221384,60149.0,60147.0,0.01512267]
[1720012245989,0.02221384,60149.0,60146.0,0.01512267]
[1720012246188,0.02221384,60149.0,60141.0,0.001]
[1720012246189,0.02221384,60149.0,60148.0,0.1602988]
[1720012246390,0.1,60152.0,60148.0,0.1602988]
[1720012246602,0.02220384,60151.0,60148.0,0.1602988]
[1720012246844,0.02220384,60151.0,60150.0,0.01512267]
[1720012247047,0.02220384,60151.0,60150.0,0.17542147]
[1720012247288,0.03093649,60157.0,60153.0,0.01512267]
[1720012247492,0.03093649,60157.0,60150.0,0.1602988]
[1720012247493,0.02138302,60154.0,60152.0,0.01512267]
[1720012247605,0.03093649,60157.0,60154.0,0.01512267]
[1720012247801,0.1,60160.0,60153.0,0.01512267]
[1720012247802,0.074951,60155.0,60153.0,0.01512267]
[1720012248002,0.00833,60155.0,60154.0,0.17542147]
[1720012248275,0.00833,60155.0,60154.0,1.02294584]
[1720012248443,0.00833,60155.0,60154.0,1.01952147]
[1720012248974,0.00833,60163.0,60162.0,0.01492267]
[1720012249196,0.00833,60163.0,60162.0,0.20553499]
[1720012249552,0.00833,60163.0,60162.0,0.20543499]
[1720012250783,0.00833,60163.0,60162.0,0.23543499]
[1720012250983,0.00833,60163.0,60162.0,0.26543499]
[1720012251425,0.00833,60163.0,60162.0,0.20543499]
[1720012252702,0.00833,60163.0,60162.0,0.20461232]
[1720012253765,0.00833,60163.0,60162.0,0.24137849]
[1720012254367,0.00833,60163.0,60162.0,0.21106497]
[1720012254783,0.00833,60163.0,60162.0,0.33522079]
[1720012254993,0.00833,60163.0,60162.0,0.90612079]
[1720012255212,0.00833,60163.0,60162.0,0.93612079]
[1720012255782,0.00833,60166.0,60165.0,0.07482267]
[1720012255947,0.00833,60166.0,60165.0,1.0916577]
[1720012256182,0.00833,60166.0,60165.0,0.76543499]
[1720012256585,0.00833,60166.0,60165.0,1.06533499]
[1720012256816,0.00833,60166.0,60165.0,1.08833499]
[1720012257020,0.00833,60166.0,60165.0,1.12571932]
[1720012257154,0.00833,60166.0,60165.0,1.67731932]
[1720012257355,0.00833,60166.0,60165.0,1.95361932]
[1720012258353,0.78273494,60199.0,60195.0,0.01482267]
[1720012258354,0.48093494,60199.0,60195.0,0.01482267]
[1720012258604,0.48093494,60199.0,60195.0,0.17512147]
[1720012258752,0.2455,60201.0,60195.0,0.1602988]
[1720012258986,0.2455,60201.0,60195.0,0.1808423]
[1720012259193,0.3018,60199.0,60195.0,0.1602988]
[1720012259393,0.02349733,60197.0,60195.0,0.1602988]
[1720012259776,0.00832,60197.0,60195.0,0.1602988]
[1720012260183,1.0120897,60196.0,60195.0,0.1602988]
[1720012260386,1.02726703,60196.0,60195.0,0.1601988]
[1720012260749,1.0120897,60196.0,60195.0,0.1600988]
[1720012261022,0.01517733,60194.0,60190.0,0.03031352]
[1720012261225,0.3018,60191.0,60190.0,0.19061232]
[1720012261566,0.4018,60191.0,60190.0,0.19061232]
[1720012261894,1.4018,60191.0,60190.0,0.19061232]
[1720012262096,1.1,60191.0,60190.0,0.19061232]
[1720012262708,1.1,60191.0,60190.0,0.20543499]
[1720012264211,1.1,60191.0,60190.0,0.20875742]
[1720012264365,1.0,60191.0,60190.0,0.26875742]
[1720012264772,1.0,60191.0,60190.0,0.23543499]
[1720012264977,1.0,60191.0,60190.0,0.35894707]
[1720012265386,1.0,60191.0,60190.0,0.29894707]
[1720012265997,1.0,60191.0,60190.0,0.19051232]
[1720012266411,1.69677733,60191.0,60190.0,0.1602988]
[1720012266800,1.6816,60191.0,60190.0,0.1602988]
[1720012267161,1.69656489,60191.0,60190.0,0.1602988]
[1720012267699,1.69656489,60191.0,60190.0,0.1742988]
[1720012267913,1.69656489,60191.0,60190.0,0.1602988]
[1720012267914,1.68138756,60191.0,60190.0,0.1602988]
[1720012268126,1.72656489,60191.0,60190.0,0.1602988]
[1720012268477,1.69656489,60191.0,60190.0,0.1742988]
[1720012268682,1.68138756,60191.0,60190.0,0.1742988]
[1720012268885,1.68138756,60191.0,60190.0,0.00213]
[1720012268886,1.88692795,60191.0,60190.0,0.00213]
[1720012269217,1.88692795,60191.0,60190.0,0.01113]
[1720012269424,1.62656489,60191.0,60190.0,0.009]
[1720012269870,1.62656489,60191.0,60190.0,0.012]
[1720012270074,1.1,60191.0,60190.0,0.1722988]
[1720012270277,1.0,60191.0,60190.0,0.18412147]
[1720012270503,1.0,60191.0,60190.0,0.24412147]
[1720012270689,1.0,60191.0,60190.0,0.23512147]
[1720012270888,1.0,60191.0,60190.0,0.23712147]
[1720012271125,1.0,60191.0,60190.0,0.24412147]
[1720012271327,1.0,60191.0,60190.0,0.54744369]
[1720012271560,1.0,60191.0,60190.0,0.54734369]
[1720012271761,1.0,60191.0,60190.0,0.53702147]
[1720012272208,1.0,60191.0,60190.0,0.54602147]
[1720012272412,1.0,60191.0,60190.0,0.53702147]
[1720012272553,1.0,60191.0,60190.0,1.14692147]
[1720012272757,1.0,60191.0,60190.0,1.42692147]
[1720012273145,1.0,60191.0,60190.0,1.42892147]
[1720012273554,1.0,60191.0,60190.0,1.42692147]
[1720012273934,1.001,60191.0,60190.0,1.44092147]
[1720012274370,1.001,60191.0,60190.0,1.64092147]
[1720012274509,1.001,60191.0,60190.0,1.62702147]
[1720012274510,0.7344,60191.0,60190.0,1.62702147]
[1720012275097,0.7344,60191.0,60190.0,1.63602147]
[1720012275306,0.7344,60191.0,60190.0,1.78826147]
[1720012275519,0.4678,60191.0,60190.0,1.62212147]
[1720012275740,0.4678,60191.0,60190.0,1.33622147]
[1720012275952,0.46863,60191.0,60190.0,0.75822147]
[1720012276345,0.46863,60191.0,60190.0,0.75812147]
[1720012277935,0.46863,60191.0,60190.0,0.7062988]
[1720012278145,0.46863,60191.0,60190.0,1.63452147]
[1720012279334,0.46863,60191.0,60190.0,1.80066147]
[1720012279757,0.46863,60191.0,60190.0,2.13294247]
[1720012279916,0.46863,60191.0,60190.0,2.74052347]
[1720012280324,0.0120897,60196.0,60195.0,0.87472267]
[1720012280530,0.0120897,60196.0,60195.0,1.55640047]
[1720012280759,0.00832,60197.0,60196.0,2.21489267]
[1720012280982,0.00832,60197.0,60196.0,2.83043847]
[1720012280983,1e-08,60197.0,60196.0,2.83043847]
[1720012281193,0.00832,60209.0,60208.0,1.44052267]
[1720012281407,0.00832,60209.0,60208.0,1.35413499]
[1720012281627,0.00832,60209.0,60208.0,1.02413499]
[1720012281845,0.00832,60209.0,60208.0,1.32413499]
[1720012282007,0.00832,60209.0,60208.0,1.35413499]
[1720012282407,0.00932,60209.0,60208.0,1.66803499]
[1720012282987,0.00932,60209.0,60208.0,1.66793499]
[1720012283193,0.00932,60209.0,60208.0,1.66783499]
[1720012283439,0.00932,60209.0,60208.0,1.36793499]
[1720012283646,0.00932,60209.0,60208.0,1.66783499]